[Event "Reykjavik Open 2025"]
[Site "Reykjavik"]
[Date "2025.04.13"]
[Round "7.21"]
[White "Unzicker, Ferdinand"]
[Black "Kilic, Eray"]
[Result "0-1"]
[Annotator "ChessBase"]
[ECO "D35"]
[WhiteElo "2241"]
[BlackElo "2473"]
[PlyCount "62"]
[EventDate "2025.04.09"]
[EventType "swiss"]
[EventCountry "ISL"]
[SourceTitle "playchess.com"]
[Source "ChessBase"]
[SourceQuality "1"]
[TimeControl "40/5400+30:1800+30"]

1. d4 {[%emt 0:00:25]} Nf6 {[%emt 0:00:05]} 2. c4 {[%emt 0:00:15]} e6 {[%emt 0:00:03]} 3. Nc3 {[%emt 0:00:05]} d5 {[%emt 0:00:04]} 4. cxd5 {[%emt 0:00:35]} exd5 {[%emt 0:00:04]} 5. Bg5 {[%emt 0:00:10]} Bb4 {[%emt 0:00:06]} 6. e3 {[%emt 0:00:38]} h6 {[%emt 0:00:04]} 7. Bh4 {[%emt 0:00:04]} g5 {[%emt 0:00:04]} 8. Bg3 {[%emt 0:00:04]} Ne4 {[%emt 0:00:04]} 9. Nge2 {[%emt 0:01:02]} h5 {[%emt 0:00:05]} 10. h4 {[%emt 0:00:40]} Nxg3 {[%emt 0:00:06]} 11. Nxg3 {[%emt 0:00:06]} gxh4 {[%emt 0:00:04]} 12. Nxh5 {[%emt 0:00:14]} c6 {[%emt 0:01:36]} 13. Qf3 {[%emt 0:05:53]} Qg5 {[%emt 0:02:28]} 14. Be2 {[%emt 0:00:34]} Be6 {[%emt 0:00:52]} 15. O-O-O {[%emt 0:07:44]} Nd7 {[%emt 0:00:24]} 16. g3 {[%emt 0:02:44]} h3 {[%emt 0:00:29]} 17. g4 {[%emt 0:01:23]} O-O-O {[%emt 0:03:21]} 18. Nf4 {[%emt 0:13:43]} Bxc3 {[%emt 0:09:12]} 19. bxc3 {[%emt 0:00:06]} Qe7 {[%emt 0:00:44]} 20. Kb2 {[%emt 0:00:36]} Nf6 {[%emt 0:04:58]} 21. Nxe6 {[%emt 0:06:39]} fxe6 {[%emt 0:00:20]} 22. Rxh3 {[%emt 0:02:10]} Ne4 {[%emt 0:00:12]} 23. Rxh8 {[%emt 0:11:43]} Rxh8 {[%emt 0:00:13]} 24. Qg2 {[%emt 0:02:16]} Qc7 {[%emt 0:00:04]} 25. Rh1 {[%emt 0:00:14]} Qb6+ {[%emt 0:00:05]} 26. Kc1 {[%emt 0:17:11]} Rxh1+ {[%emt 0:05:31]} 27. Qxh1 {[%emt 0:00:09]} Qa5 {[%emt 0:00:08]} 28. Qe1 {[%emt 0:02:12]} Qa3+ {[%emt 0:00:26]} 29. Kc2 {[%emt 0:01:30]} Qxa2+ {[%emt 0:00:19]} 30. Kd3 {[%emt 0:00:27]} c5 {[%emt 0:00:11]} 31. dxc5 {[%emt 0:00:49]} e5 {[%emt 0:00:05]} 0-1

[Event "Reykjavik Open 2025"]
[Site "Reykjavik"]
[Date "2025.04.13"]
[Round "7.22"]
[White "Kjartansson, Gudmundur"]
[Black "Garbuz, Vitaliy"]
[Result "1-0"]
[Annotator "ChessBase"]
[ECO "D24"]
[WhiteElo "2450"]
[BlackElo "2203"]
[PlyCount "119"]
[EventDate "2025.04.09"]
[EventType "swiss"]
[EventCountry "ISL"]
[SourceTitle "playchess.com"]
[Source "ChessBase"]
[SourceQuality "1"]
[TimeControl "40/5400+30:1800+30"]

1. c4 {[%emt 0:00:05]} e6 {[%emt 0:19:35]} 2. d4 {[%emt 0:00:09]} d5 {[%emt 0:00:05]} 3. Nf3 {[%emt 0:00:04]} Nf6 {[%emt 0:00:06]} 4. Nc3 {[%emt 0:00:05]} dxc4 {[%emt 0:00:05]} 5. e4 {[%emt 0:00:11]} b5 {[%emt 0:00:06]} 6. e5 {[%emt 0:00:46]} Nd5 {[%emt 0:00:07]} 7. Nxb5 {[%emt 0:00:08]} Nb6 {[%emt 0:00:06]} 8. Nc3 {[%emt 0:03:06]} Nc6 {[%emt 0:02:11]} 9. Be2 {[%emt 0:02:26]} Nb4 {[%emt 0:10:43]} 10. O-O {[%emt 0:03:22]} Qd7 {[%emt 0:08:59]} 11. a3 {[%emt 0:04:22]} Nc6 {[%emt 0:00:29]} 12. Be3 {[%emt 0:01:44]} Rb8 {[%emt 0:01:23]} 13. Qc2 {[%emt 0:06:41]} Be7 {[%emt 0:01:10]} 14. Rad1 {[%emt 0:03:33]} Bb7 {[%emt 0:06:26]} 15. Ne4 {[%emt 0:03:26]} Na5 {[%emt 0:02:25]} 16. Nc3 {[%emt 0:13:44]} Bc6 {[%emt 0:01:56]} 17. Rb1 {[%emt 0:02:20]} O-O {[%emt 0:10:03]} 18. Nd2 {[%emt 0:03:23]} f5 {[%emt 0:15:10]} 19. exf6 {[%emt 0:01:26]} gxf6 {[%emt 0:01:20]} 20. Bf3 {[%emt 0:11:35]} Kh8 {[%emt 0:00:51]} 21. Bxc6 {[%emt 0:07:18]} Nxc6 {[%emt 0:00:50]} 22. Ne2 {[%emt 0:01:46]} Rg8 {[%emt 0:00:42]} 23. Rfc1 {[%emt 0:02:17]} e5 {[%emt 0:03:47]} 24. dxe5 {[%emt 0:00:37]} Nxe5 {[%emt 0:01:23]} 25. Ng3 {[%emt 0:00:42]} Qd5 {[%emt 0:10:38]} 26. Rd1 {[%emt 0:04:41]} Qd3 {[%emt 0:01:02]} 27. Qxd3 {[%emt 0:00:11]} cxd3 {[%emt 0:01:11]} 28. Nf5 {[%emt 0:00:41]} Bf8 {[%emt 0:00:13]} 29. Ne4 {[%emt 0:01:43]} Nbc4 {[%emt 0:01:24]} 30. Nxf6 {[%emt 0:01:44]} Rg6 {[%emt 0:00:13]} 31. Nd5 {[%emt 0:02:27]} c6 {[%emt 0:00:50]} 32. Bxa7 {[%emt 0:15:05]} Rb7 {[%emt 0:00:04]} 33. Bd4 {[%emt 0:00:42]} cxd5 {[%emt 0:00:07]} 34. f4 {[%emt 0:00:17]} Rf7 {[%emt 0:00:27]} 35. b3 {[%emt 0:02:50]} Nxa3 {[%emt 0:01:21]} 36. Bxe5+ {[%emt 0:00:49]} Kg8 {[%emt 0:00:04]} 37. Rbc1 {[%emt 0:01:11]} Rxf5 {[%emt 0:00:13]} 38. Rxd3 {[%emt 0:00:01]} Nb5 {[%emt 0:01:11]} 39. Rxd5 {[%emt 0:00:24]} Nd6 {[%emt 0:00:14]} 40. Rc6 {[%emt 0:01:41]} Ne4 {[%emt 0:00:39]} 41. Rc8 {[%emt 0:08:35]} Rb6 {[%emt 0:07:23]} 42. Rd4 {[%emt 0:09:32]} Nc5 {[%emt 0:04:29]} 43. b4 {[%emt 0:01:12]} Na6 {[%emt 0:05:57]} 44. Rd6 {[%emt 0:00:50]} Rxd6 {[%emt 0:02:20]} 45. Bxd6 {[%emt 0:00:08]} Nxb4 {[%emt 0:09:34]} 46. Bxb4 {[%emt 0:02:19]} Rxf4 {[%emt 0:00:01]} 47. Rxf8+ {[%emt 0:00:22]} Rxf8 {[%emt 0:00:01]} 48. Bxf8 {[%emt 0:00:06]} Kxf8 {[%emt 0:00:05]} 49. Kf2 {[%emt 0:00:04]} Kf7 {[%emt 0:00:55]} 50. Kf3 {[%emt 0:00:25]} Kf6 {[%emt 0:02:48]} 51. Kf4 {[%emt 0:00:32]} h6 {[%emt 0:01:46]} 52. g4 {[%emt 0:02:07]} Kg6 {[%emt 0:00:50]} 53. h3 {[%emt 0:01:05]} Kf6 {[%emt 0:00:12]} 54. h4 {[%emt 0:00:06]} Ke6 {[%emt 0:00:49]} 55. Ke4 {[%emt 0:00:09]} Kf6 {[%emt 0:00:25]} 56. Kd5 {[%emt 0:00:07]} Kf7 {[%emt 0:00:32]} 57. Ke5 {[%emt 0:00:58]} Kg7 {[%emt 0:00:32]} 58. h5 {[%emt 0:02:16]} Kf7 {[%emt 0:00:25]} 59. Kf5 {[%emt 0:00:05]} Kg7 {[%emt 0:00:30]} 60. Ke6 {[%emt 0:00:07]} 1-0

[Event "Reykjavik Open 2025"]
[Site "Reykjavik"]
[Date "2025.04.13"]
[Round "7.23"]
[White "Gajcin, Marina"]
[Black "Hagner, Bennet"]
[Result "0-1"]
[Annotator "ChessBase"]
[ECO "C50"]
[WhiteElo "2217"]
[BlackElo "2430"]
[PlyCount "82"]
[EventDate "2025.04.09"]
[EventType "swiss"]
[EventCountry "ISL"]
[SourceTitle "playchess.com"]
[Source "ChessBase"]
[SourceQuality "1"]
[TimeControl "40/5400+30:1800+30"]

1. e4 {[%emt 0:05:00]} e5 {[%emt 0:00:34]} 2. Nf3 {[%emt 0:00:52]} Nc6 {[%emt 0:00:07]} 3. Bc4 {[%emt 0:00:44]} Bc5 {[%emt 0:00:09]} 4. d3 {[%emt 0:02:14]} d6 {[%emt 0:01:29]} 5. c3 {[%emt 0:03:30]} Bb6 {[%emt 0:00:34]} 6. O-O {[%emt 0:02:30]} h6 {[%emt 0:00:20]} 7. a4 {[%emt 0:05:41]} Nge7 {[%emt 0:01:01]} 8. b4 {[%emt 0:03:29]} a6 {[%emt 0:00:19]} 9. Qb3 {[%emt 0:05:54]} O-O {[%emt 0:00:37]} 10. Be3 {[%emt 0:01:31]} Ng6 {[%emt 0:00:36]} 11. a5 {[%emt 0:16:19]} Ba7 {[%emt 0:00:39]} 12. d4 {[%emt 0:00:26]} Qf6 {[%emt 0:08:19]} 13. Qb2 {[%emt 0:03:46]} Nf4 {[%emt 0:03:57]} 14. Bxf4 {[%emt 0:07:58]} Qxf4 {[%emt 0:00:14]} 15. Nbd2 {[%emt 0:00:23]} exd4 {[%emt 0:08:43]} 16. cxd4 {[%emt 0:05:17]} Qf6 {[%emt 0:01:29]} 17. e5 {[%emt 0:09:30]} Qf4 {[%emt 0:00:31]} 18. exd6 {[%emt 0:00:23]} Nxd4 {[%emt 0:00:45]} 19. Ra3 {[%emt 0:03:27]} Bg4 {[%emt 0:11:22]} 20. Nxd4 {[%emt 0:02:27]} Bxd4 {[%emt 0:00:10]} 21. Qc2 {[%emt 0:01:01]} cxd6 {[%emt 0:21:47]} 22. Qe4 {[%emt 0:00:14]} Be5 {[%emt 0:10:46]} 23. g3 {[%emt 0:00:10]} Qxe4 {[%emt 0:05:45]} 24. Nxe4 {[%emt 0:00:02]} Rac8 {[%emt 0:02:59]} 25. Bd5 {[%emt 0:00:29]} Rc2 {[%emt 0:01:06]} 26. Kg2 {[%emt 0:08:07]} Kh8 {[%emt 0:06:08]} 27. h3 {[%emt 0:00:04]} Be2 {[%emt 0:01:48]} 28. Re1 {[%emt 0:00:03]} f5 {[%emt 0:01:34]} 29. Re3 {[%emt 0:02:21]} Bc4 {[%emt 0:03:58]} 30. Bxc4 {[%emt 0:00:33]} Rxc4 {[%emt 0:03:20]} 31. Nc5 {[%emt 0:00:31]} f4 {[%emt 0:03:35]} 32. Rf3 {[%emt 0:03:32]} dxc5 {[%emt 0:00:33]} 33. Rxe5 {[%emt 0:00:04]} cxb4 {[%emt 0:00:07]} 34. Re7 {[%emt 0:00:23]} Rb8 {[%emt 0:01:03]} 35. gxf4 {[%emt 0:00:17]} b6 {[%emt 0:00:03]} 36. axb6 {[%emt 0:04:43]} Rxb6 {[%emt 0:00:02]} 37. Rg3 {[%emt 0:00:13]} Rc8 {[%emt 0:00:03]} 38. Kh2 {[%emt 0:03:06]} Rg8 {[%emt 0:00:08]} 39. f5 {[%emt 0:00:11]} b3 {[%emt 0:00:26]} 40. f6 {[%emt 0:00:05]} gxf6 {[%emt 0:01:14]} 41. Rd3 {[%emt 0:30:04]} b2 {[%emt 0:30:32]} 0-1

[Event "Reykjavik Open 2025"]
[Site "Reykjavik"]
[Date "2025.04.13"]
[Round "7.24"]
[White "Stefansson, Hannes"]
[Black "Ornolfsson, Magnus P."]
[Result "1-0"]
[Annotator "ChessBase"]
[ECO "A28"]
[WhiteElo "2420"]
[BlackElo "2174"]
[PlyCount "83"]
[EventDate "2025.04.09"]
[EventType "swiss"]
[EventCountry "ISL"]
[SourceTitle "playchess.com"]
[Source "ChessBase"]
[SourceQuality "1"]
[TimeControl "40/5400+30:1800+30"]

1. c4 {[%emt 0:00:18]} Nf6 {[%emt 0:00:29]} 2. Nc3 {[%emt 0:00:39]} e5 {[%emt 0:00:25]} 3. Nf3 {[%emt 0:00:15]} Nc6 {[%emt 0:00:15]} 4. e4 {[%emt 0:01:33]} Bb4 {[%emt 0:06:49]} 5. d3 {[%emt 0:00:24]} O-O {[%emt 0:02:11]} 6. a3 {[%emt 0:03:52]} Bxc3+ {[%emt 0:03:28]} 7. bxc3 {[%emt 0:00:06]} d6 {[%emt 0:00:28]} 8. Bg5 {[%emt 0:02:52]} h6 {[%emt 0:01:33]} 9. Bh4 {[%emt 0:00:27]} g5 {[%emt 0:03:37]} 10. Bg3 {[%emt 0:00:18]} Kg7 {[%emt 0:04:33]} 11. Be2 {[%emt 0:03:48]} Bg4 {[%emt 0:05:04]} 12. Nd2 {[%emt 0:04:56]} Bxe2 {[%emt 0:02:28]} 13. Qxe2 {[%emt 0:00:05]} Qd7 {[%emt 0:02:12]} 14. Nf1 {[%emt 0:02:36]} Qg4 {[%emt 0:10:52]} 15. f3 {[%emt 0:00:59]} Qd7 {[%emt 0:00:14]} 16. Ne3 {[%emt 0:03:07]} Ne7 {[%emt 0:02:47]} 17. d4 {[%emt 0:02:16]} Nh5 {[%emt 0:06:51]} 18. dxe5 {[%emt 0:02:33]} Nxg3 {[%emt 0:00:33]} 19. hxg3 {[%emt 0:00:06]} dxe5 {[%emt 0:00:22]} 20. Ng4 {[%emt 0:00:42]} Ng6 {[%emt 0:17:58]} 21. Rxh6 {[%emt 0:11:00]} Rh8 {[%emt 0:02:18]} 22. Rxh8 {[%emt 0:00:33]} Rxh8 {[%emt 0:00:09]} 23. Kf2 {[%emt 0:00:15]} Rd8 {[%emt 0:03:17]} 24. Ne3 {[%emt 0:00:17]} Qa4 {[%emt 0:02:59]} 25. Qb2 {[%emt 0:04:58]} Qc6 {[%emt 0:09:46]} 26. Ke2 {[%emt 0:01:51]} Ne7 {[%emt 0:03:10]} 27. Qb5 {[%emt 0:01:51]} f6 {[%emt 0:01:21]} 28. Qxc6 {[%emt 0:01:00]} Nxc6 {[%emt 0:00:16]} 29. Nf5+ {[%emt 0:00:57]} Kf7 {[%emt 0:00:59]} 30. Rh1 {[%emt 0:00:08]} Ke6 {[%emt 0:02:32]} 31. Rh7 {[%emt 0:01:32]} Rd7 {[%emt 0:02:52]} 32. Ng7+ {[%emt 0:01:24]} Rxg7 {[%emt 0:00:37]} 33. Rxg7 {[%emt 0:00:08]} Ne7 {[%emt 0:00:08]} 34. Ke3 {[%emt 0:00:29]} b6 {[%emt 0:00:13]} 35. f4 {[%emt 0:00:29]} gxf4+ {[%emt 0:00:15]} 36. gxf4 {[%emt 0:00:05]} exf4+ {[%emt 0:00:10]} 37. Kxf4 {[%emt 0:00:07]} a5 {[%emt 0:00:41]} 38. g4 {[%emt 0:01:02]} Kd6 {[%emt 0:00:59]} 39. Rxe7 {[%emt 0:01:33]} Kxe7 {[%emt 0:00:06]} 40. Kf5 {[%emt 0:00:19]} Kf7 {[%emt 0:00:23]} 41. e5 {[%emt 0:30:13]} fxe5 {[%emt 0:30:06]} 42. Kxe5 {[%emt 0:00:05]} 1-0

[Event "Reykjavik Open 2025"]
[Site "Reykjavik"]
[Date "2025.04.13"]
[Round "7.25"]
[White "Pipiras, Filipa Fortuna"]
[Black "Fantinel, Thibault"]
[Result "1-0"]
[Annotator "ChessBase"]
[ECO "E73"]
[WhiteElo "2195"]
[BlackElo "2411"]
[PlyCount "83"]
[EventDate "2025.04.09"]
[EventType "swiss"]
[EventCountry "ISL"]
[SourceTitle "playchess.com"]
[Source "ChessBase"]
[SourceQuality "1"]
[TimeControl "40/5400+30:1800+30"]

1. d4 {[%emt 0:00:33]} Nf6 {[%emt 0:00:07]} 2. c4 {[%emt 0:00:15]} g6 {[%emt 0:00:04]} 3. Nc3 {[%emt 0:00:22]} Bg7 {[%emt 0:00:09]} 4. e4 {[%emt 0:00:15]} d6 {[%emt 0:00:04]} 5. Be2 {[%emt 0:00:08]} O-O {[%emt 0:00:23]} 6. Be3 {[%emt 0:00:27]} e5 {[%emt 0:00:31]} 7. d5 {[%emt 0:00:08]} Na6 {[%emt 0:00:17]} 8. h4 {[%emt 0:00:22]} Nc5 {[%emt 0:03:09]} 9. Qc2 {[%emt 0:00:50]} c6 {[%emt 0:00:25]} 10. h5 {[%emt 0:00:26]} cxd5 {[%emt 0:00:27]} 11. cxd5 {[%emt 0:00:10]} Qa5 {[%emt 0:00:34]} 12. h6 {[%emt 0:00:23]} Bh8 {[%emt 0:00:03]} 13. f3 {[%emt 0:00:18]} Nh5 {[%emt 0:00:28]} 14. a3 {[%emt 0:02:10]} Ng3 {[%emt 0:01:36]} 15. b4 {[%emt 0:00:36]} Qd8 {[%emt 0:00:06]} 16. Rh2 {[%emt 0:05:57]} Nxe2 {[%emt 0:01:58]} 17. Ngxe2 {[%emt 0:00:24]} Na6 {[%emt 0:00:14]} 18. g4 {[%emt 0:00:48]} Bd7 {[%emt 0:07:04]} 19. Qd3 {[%emt 0:01:30]} Nc7 {[%emt 0:04:33]} 20. a4 {[%emt 0:06:44]} Bf6 {[%emt 0:03:43]} 21. Kd2 {[%emt 0:01:57]} Rc8 {[%emt 0:09:02]} 22. Kc2 {[%emt 0:05:54]} a5 {[%emt 0:03:26]} 23. b5 {[%emt 0:01:02]} Na8 {[%emt 0:00:05]} 24. Kb3 {[%emt 0:10:44]} Nb6 {[%emt 0:00:37]} 25. Nd1 {[%emt 0:07:03]} Nc4 {[%emt 0:31:19]} 26. Bf2 {[%emt 0:04:53]} Bg5 {[%emt 0:02:14]} 27. Ne3 {[%emt 0:02:15]} Bxe3 {[%emt 0:05:19]} 28. Bxe3 {[%emt 0:00:05]} Qf6 {[%emt 0:00:07]} 29. Rc1 {[%emt 0:04:08]} Qxf3 {[%emt 0:04:19]} 30. Rxc4 {[%emt 0:00:32]} Rxc4 {[%emt 0:00:03]} 31. Kxc4 {[%emt 0:00:22]} Bxg4 {[%emt 0:00:02]} 32. Rf2 {[%emt 0:12:53]} Qh1 {[%emt 0:02:03]} 33. Nc3 {[%emt 0:03:39]} f5 {[%emt 0:02:43]} 34. Bg5 {[%emt 0:07:17]} Qg1 {[%emt 0:12:39]} 35. Qd2 {[%emt 0:05:13]} Rc8+ {[%emt 0:03:06]} 36. Kb3 {[%emt 0:00:20]} Qa1 {[%emt 0:02:50]} 37. Be7 {[%emt 0:02:45]} fxe4 {[%emt 0:01:17]} 38. Bxd6 {[%emt 0:10:13]} Rxc3+ {[%emt 0:00:52]} 39. Qxc3 {[%emt 0:00:04]} Bd1+ {[%emt 0:00:05]} 40. Kc4 {[%emt 0:01:21]} Qxa4+ {[%emt 0:00:03]} 41. Kc5 {[%emt 0:31:35]} Bf3 {[%emt 0:04:42]} 42. Qxe5 {[%emt 0:00:00]} 1-0

[Event "Reykjavik Open 2025"]
[Site "Reykjavik"]
[Date "2025.04.13"]
[Round "7.26"]
[White "Shafer, Logan C"]
[Black "Tahay, Alexis"]
[Result "1-0"]
[Annotator "ChessBase"]
[ECO "E11"]
[WhiteElo "2193"]
[BlackElo "2397"]
[PlyCount "77"]
[EventDate "2025.04.09"]
[EventType "swiss"]
[EventCountry "ISL"]
[SourceTitle "playchess.com"]
[Source "ChessBase"]
[SourceQuality "1"]
[TimeControl "40/5400+30:1800+30"]

1. d4 {[%emt 0:00:03]} Nf6 {[%emt 0:00:07]} 2. c4 {[%emt 0:00:04]} e6 {[%emt 0:00:03]} 3. Nf3 {[%emt 0:00:07]} d5 {[%emt 0:01:08]} 4. g3 {[%emt 0:00:06]} Bb4+ {[%emt 0:00:56]} 5. Bd2 {[%emt 0:00:06]} a5 {[%emt 0:00:04]} 6. Bg2 {[%emt 0:00:07]} O-O {[%emt 0:00:04]} 7. Qc2 {[%emt 0:00:12]} Nbd7 {[%emt 0:00:30]} 8. O-O {[%emt 0:00:15]} Be7 {[%emt 0:00:04]} 9. Bf4 {[%emt 0:00:43]} c6 {[%emt 0:00:05]} 10. Rd1 {[%emt 0:00:33]} Ne4 {[%emt 0:02:19]} 11. Nc3 {[%emt 0:00:31]} g5 {[%emt 0:03:11]} 12. Be3 {[%emt 0:00:49]} Nd6 {[%emt 0:03:38]} 13. b3 {[%emt 0:06:10]} f5 {[%emt 0:05:08]} 14. Ne5 {[%emt 0:05:39]} Nxe5 {[%emt 0:05:47]} 15. dxe5 {[%emt 0:00:06]} Nf7 {[%emt 0:00:02]} 16. f4 {[%emt 0:11:19]} Bd7 {[%emt 0:10:10]} 17. Kh1 {[%emt 0:04:18]} b5 {[%emt 0:02:56]} 18. cxb5 {[%emt 0:05:38]} cxb5 {[%emt 0:00:59]} 19. Nxd5 {[%emt 0:00:26]} exd5 {[%emt 0:00:07]} 20. Bxd5 {[%emt 0:00:05]} Rc8 {[%emt 0:04:44]} 21. Qb2 {[%emt 0:00:54]} Bc5 {[%emt 0:00:45]} 22. e6 {[%emt 0:10:55]} Bxe3 {[%emt 0:00:26]} 23. exd7 {[%emt 0:07:25]} Qxd7 {[%emt 0:00:59]} 24. Qf6 {[%emt 0:00:44]} Rfe8 {[%emt 0:05:43]} 25. Qxg5+ {[%emt 0:09:01]} Kf8 {[%emt 0:00:02]} 26. Qh5 {[%emt 0:01:01]} Kg7 {[%emt 0:05:23]} 27. Bf3 {[%emt 0:05:21]} Qe6 {[%emt 0:01:31]} 28. Rd5 {[%emt 0:00:33]} Rc5 {[%emt 0:01:18]} 29. Rad1 {[%emt 0:00:35]} Rec8 {[%emt 0:02:24]} 30. Kg2 {[%emt 0:05:17]} R8c7 {[%emt 0:06:17]} 31. R5d3 {[%emt 0:01:26]} Rc3 {[%emt 0:07:34]} 32. Rd5 {[%emt 0:00:54]} R7c5 {[%emt 0:03:53]} 33. Rd7 {[%emt 0:00:20]} Qg6 {[%emt 0:00:03]} 34. R1d6 {[%emt 0:01:06]} Rc7 {[%emt 0:10:12]} 35. Rxg6+ {[%emt 0:00:16]} hxg6 {[%emt 0:00:03]} 36. Rxc7 {[%emt 0:00:12]} Rxc7 {[%emt 0:00:01]} 37. Qh4 {[%emt 0:00:18]} Bd4 {[%emt 0:00:09]} 38. g4 {[%emt 0:00:29]} Nd6 {[%emt 0:02:48]} 39. Qd8 {[%emt 0:00:27]} 1-0

[Event "Reykjavik Open 2025"]
[Site "Reykjavik"]
[Date "2025.04.13"]
[Round "7.27"]
[White "Terrieux, Kevin"]
[Black "Alrehaili, Ahmed Abdullah S"]
[Result "1-0"]
[Annotator "ChessBase"]
[ECO "D02"]
[WhiteElo "2394"]
[BlackElo "2152"]
[PlyCount "97"]
[EventDate "2025.04.09"]
[EventType "swiss"]
[EventCountry "ISL"]
[SourceTitle "playchess.com"]
[Source "ChessBase"]
[SourceQuality "1"]
[TimeControl "40/5400+30:1800+30"]

1. d4 {[%emt 0:00:16]} Nf6 {[%emt 0:00:46]} 2. Nf3 {[%emt 0:00:07]} g6 {[%emt 0:01:34]} 3. Nbd2 {[%emt 0:00:18]} d5 {[%emt 0:00:48]} 4. b4 {[%emt 0:00:28]} Bg7 {[%emt 0:01:37]} 5. e3 {[%emt 0:00:11]} O-O {[%emt 0:01:25]} 6. c4 {[%emt 0:00:09]} c6 {[%emt 0:03:36]} 7. a4 {[%emt 0:00:41]} Nbd7 {[%emt 0:01:45]} 8. Bb2 {[%emt 0:06:43]} e5 {[%emt 0:11:06]} 9. dxe5 {[%emt 0:00:10]} Ng4 {[%emt 0:00:33]} 10. cxd5 {[%emt 0:01:17]} Ndxe5 {[%emt 0:05:25]} 11. Qb3 {[%emt 0:16:30]} Nxf3+ {[%emt 0:16:30]} 12. Nxf3 {[%emt 0:12:59]} Bxb2 {[%emt 0:01:23]} 13. Qxb2 {[%emt 0:00:10]} Qxd5 {[%emt 0:05:39]} 14. h3 {[%emt 0:02:00]} Nh6 {[%emt 0:02:31]} 15. Rd1 {[%emt 0:04:28]} Qe6 {[%emt 0:02:49]} 16. Be2 {[%emt 0:14:31]} Nf5 {[%emt 0:03:49]} 17. O-O {[%emt 0:00:59]} Qe7 {[%emt 0:00:51]} 18. Rd2 {[%emt 0:02:47]} Be6 {[%emt 0:02:44]} 19. Rfd1 {[%emt 0:03:56]} Rfd8 {[%emt 0:02:51]} 20. a5 {[%emt 0:07:23]} Bd5 {[%emt 0:06:02]} 21. Ne5 {[%emt 0:03:39]} h5 {[%emt 0:03:05]} 22. Bf3 {[%emt 0:02:34]} Bxf3 {[%emt 0:05:18]} 23. Nxf3 {[%emt 0:00:06]} Rd6 {[%emt 0:02:38]} 24. Rxd6 {[%emt 0:01:22]} Nxd6 {[%emt 0:00:01]} 25. Qe5 {[%emt 0:00:10]} Qxe5 {[%emt 0:02:25]} 26. Nxe5 {[%emt 0:00:03]} Re8 {[%emt 0:04:44]} 27. Nxg6 {[%emt 0:07:34]} Ne4 {[%emt 0:02:07]} 28. Nf4 {[%emt 0:00:32]} Re5 {[%emt 0:00:02]} 29. Rd4 {[%emt 0:03:01]} Nf6 {[%emt 0:01:45]} 30. Nd3 {[%emt 0:03:09]} Rb5 {[%emt 0:00:58]} 31. Rc4 {[%emt 0:00:56]} Rd5 {[%emt 0:02:11]} 32. Nc5 {[%emt 0:01:56]} b6 {[%emt 0:02:24]} 33. axb6 {[%emt 0:00:59]} axb6 {[%emt 0:00:01]} 34. Nb3 {[%emt 0:00:07]} Rd1+ {[%emt 0:01:01]} 35. Kh2 {[%emt 0:00:01]} Rb1 {[%emt 0:00:21]} 36. Nd4 {[%emt 0:00:17]} Ne4 {[%emt 0:01:05]} 37. Rc2 {[%emt 0:03:22]} Rxb4 {[%emt 0:04:27]} 38. Nxc6 {[%emt 0:00:05]} Rb1 {[%emt 0:00:20]} 39. f3 {[%emt 0:00:42]} Nf6 {[%emt 0:00:15]} 40. Kg3 {[%emt 0:02:54]} b5 {[%emt 0:01:04]} 41. Rc5 {[%emt 0:02:25]} Kg7 {[%emt 0:08:05]} 42. Nd4 {[%emt 0:01:04]} b4 {[%emt 0:00:03]} 43. Rb5 {[%emt 0:00:20]} Kg6 {[%emt 0:01:55]} 44. Rb6 {[%emt 0:09:12]} Rb2 {[%emt 0:04:14]} 45. e4 {[%emt 0:02:09]} Kg7 {[%emt 0:02:59]} 46. Nf5+ {[%emt 0:00:17]} Kg6 {[%emt 0:00:01]} 47. Kf4 {[%emt 0:00:18]} Rc2 {[%emt 0:01:23]} 48. g4 {[%emt 0:00:23]} hxg4 {[%emt 0:01:14]} 49. hxg4 {[%emt 0:00:05]} 1-0

[Event "Reykjavik Open 2025"]
[Site "Reykjavik"]
[Date "2025.04.13"]
[Round "7.28"]
[White "Harish, Neeraj"]
[Black "Willems, Niels"]
[Result "1/2-1/2"]
[Annotator "ChessBase"]
[ECO "D41"]
[WhiteElo "2169"]
[BlackElo "2394"]
[PlyCount "105"]
[EventDate "2025.04.09"]
[EventType "swiss"]
[EventCountry "ISL"]
[SourceTitle "playchess.com"]
[Source "ChessBase"]
[SourceQuality "1"]
[TimeControl "40/5400+30:1800+30"]

1. e4 {[%emt 0:00:06]} c6 {[%emt 0:00:09]} 2. d4 {[%emt 0:00:09]} d5 {[%emt 0:00:04]} 3. exd5 {[%emt 0:00:21]} cxd5 {[%emt 0:00:06]} 4. c4 {[%emt 0:00:06]} Nf6 {[%emt 0:00:10]} 5. Nc3 {[%emt 0:00:08]} Nc6 {[%emt 0:00:46]} 6. Nf3 {[%emt 0:00:09]} a6 {[%emt 0:01:47]} 7. cxd5 {[%emt 0:00:34]} Nxd5 {[%emt 0:00:13]} 8. Bc4 {[%emt 0:00:15]} e6 {[%emt 0:03:38]} 9. O-O {[%emt 0:02:03]} Be7 {[%emt 0:00:54]} 10. Re1 {[%emt 0:04:05]} O-O {[%emt 0:00:39]} 11. Bb3 {[%emt 0:03:00]} Bf6 {[%emt 0:12:08]} 12. Ne4 {[%emt 0:07:06]} Nce7 {[%emt 0:00:51]} 13. Nxf6+ {[%emt 0:08:34]} Nxf6 {[%emt 0:00:10]} 14. Bg5 {[%emt 0:00:12]} b6 {[%emt 0:03:42]} 15. Ne5 {[%emt 0:10:08]} Bb7 {[%emt 0:05:26]} 16. Bxf6 {[%emt 0:03:25]} gxf6 {[%emt 0:00:12]} 17. Ng4 {[%emt 0:00:08]} Nd5 {[%emt 0:04:08]} 18. Qf3 {[%emt 0:03:09]} f5 {[%emt 0:06:27]} 19. Ne3 {[%emt 0:09:32]} Nxe3 {[%emt 0:05:09]} 20. Qxb7 {[%emt 0:01:09]} Nd5 {[%emt 0:06:44]} 21. Rac1 {[%emt 0:08:01]} Nf4 {[%emt 0:09:50]} 22. Qf3 {[%emt 0:03:11]} Qg5 {[%emt 0:03:35]} 23. g3 {[%emt 0:06:24]} Ng6 {[%emt 0:00:25]} 24. d5 {[%emt 0:07:27]} exd5 {[%emt 0:00:37]} 25. Bxd5 {[%emt 0:00:27]} Rae8 {[%emt 0:03:24]} 26. Kh1 {[%emt 0:05:19]} Re5 {[%emt 0:04:46]} 27. Rcd1 {[%emt 0:01:40]} f4 {[%emt 0:05:38]} 28. gxf4 {[%emt 0:05:06]} Rxe1+ {[%emt 0:00:42]} 29. Rxe1 {[%emt 0:00:06]} Qxf4 {[%emt 0:00:10]} 30. Qxf4 {[%emt 0:00:36]} Nxf4 {[%emt 0:00:01]} 31. Bb3 {[%emt 0:00:12]} Rc8 {[%emt 0:00:27]} 32. h4 {[%emt 0:00:28]} Kf8 {[%emt 0:01:59]} 33. Kh2 {[%emt 0:00:41]} Nd3 {[%emt 0:00:39]} 34. Re2 {[%emt 0:00:22]} Nc1 {[%emt 0:07:44]} 35. Rc2 {[%emt 0:01:50]} Rxc2 {[%emt 0:00:06]} 36. Bxc2 {[%emt 0:00:04]} Nxa2 {[%emt 0:00:12]} 37. Bxh7 {[%emt 0:00:13]} Nb4 {[%emt 0:12:24]} 38. Be4 {[%emt 0:04:00]} a5 {[%emt 0:00:25]} 39. Kg3 {[%emt 0:00:11]} Na6 {[%emt 0:02:23]} 40. Kf4 {[%emt 0:01:17]} Nc5 {[%emt 0:00:54]} 41. Ke5 {[%emt 0:36:12]} Na4 {[%emt 0:08:51]} 42. b3 {[%emt 0:00:00]} Nc3 {[%emt 0:03:50]} 43. Bc2 {[%emt 0:00:00]} b5 {[%emt 0:00:03]} 44. Kd4 {[%emt 0:00:00]} Ne2+ {[%emt 0:06:07]} 45. Ke3 {[%emt 0:00:00]} Nc3 {[%emt 0:01:26]} 46. Kd4 {[%emt 0:00:00]} Ne2+ {[%emt 0:00:05]} 47. Kc5 {[%emt 0:00:00]} a4 {[%emt 0:00:28]} 48. bxa4 {[%emt 0:00:00]} bxa4 {[%emt 0:00:02]} 49. Bxa4 {[%emt 0:00:00]} Nf4 {[%emt 0:00:28]} 50. f3 {[%emt 0:00:00]} Ng6 {[%emt 0:00:18]} 51. h5 {[%emt 0:00:00]} Ne5 {[%emt 0:00:06]} 52. Bd1 {[%emt 0:00:00]} Nxf3 {[%emt 0:00:13]} 53. Bxf3 {[%emt 0:00:00]} 1/2-1/2